Cogmind - Beta 11.1 @@@ ROGUE MODE // 2022.04.23 @ 19:31:58 // Winter2019/RPGLIKE Player: Rainynight Result: Self-destructed Performance ------------- Evolutions (9) 4500 Regions Visited (21) 4200 Robots Destroyed (294) 1470 Value Destroyed (11656) 11656 Prototype IDs (44) 880 Alien Tech Used (1) 200 Bonus (6109) 6109 TOTAL SCORE: 29015 Bonus ------- Triggered High Security 500 High Alert Combat Kills 1968 Follower Combat Kills 1870 Entered DSFs 500 Aligned with FarCom 300 Met Zhirov 300 Built Enhanced Grunts 300 A7 Reached Mainframe 300 Met R17 at Cetus 500 Friendly Fire -429 Cogmind --------- Core Integrity 88/1950 Matter 300/300 Energy 156/1830 System Corruption 3% Temperature Cool (-150) Movement Walking (113) Location -1/Access Parts ------- > --- POWER (1) -------- Light Particle Reactor > --- PROPULSION (3) --- Myomer Leg Biometal Leg Biometal Leg > --- UTILITY (8) ------ Improved Cryofiber Web Advanced Heat Sink Superbattery Structural Scanner Long-range Terrain Scanner Improved Weapon Cycler > --- WEAPON (6) ------- Gamma Rifle Gamma Rifle Gamma Rifle Enhanced Nova Cannon Enhanced Nova Cannon Enhanced Nova Cannon > --- INVENTORY (4) ---- Enhanced Nova Cannon Enhanced Nova Cannon Enhanced Nova Cannon Phasing Sabre Peak State ------------ > --- POWER ------------ Light Particle Reactor > --- PROPULSION ------- Myomer Leg Biometal Leg Biometal Leg > --- UTILITY ---------- Improved Cryofiber Web Improved Heat Sink Superbattery Structural Scanner Long-range Terrain Scanner Particle Charger Improved Weapon Cycler Layered Medium Armor Plating > --- WEAPON ----------- Enhanced Nova Cannon Enhanced Nova Cannon Enhanced Nova Cannon Enhanced Nova Cannon Enhanced Nova Cannon Enhanced Nova Cannon > --- INVENTORY -------- Improved Transmission Jammer Graphene Brace Tesla Rifle Phasing Sabre [Rating: 127] Favorites ----------- Power Light Deuterium Engine Engine Light Deuterium Engine Power Core Nuclear Core Reactor Light Particle Reactor Propulsion Flexi-carbon Leg Treads Light Treads Leg Flexi-carbon Leg Utility Superbattery Device Improved Terrain Scanner Storage Superbattery Processor Targeting Computer Hackware Hacking Suite Protection Layered Medium Armor Plating Weapon Plasma Rifle Energy Gun Plasma Rifle Energy Cannon Enhanced Nova Cannon Ballistic Gun Light Assault Rifle Special Weapon Molecular Deconstructor Impact Weapon Hammer Slashing Weapon Phasing Sabre Piercing Weapon Spear Build | -11 -10 -10 -9 -9 -9 -8 -8 -7 -6 -6 -6 -5 -5 -5 -5 -4 -4 -3 -3 -2 -1 ------- Run | Scr Mat Min Mat Min Exi Min Mat Fac Fac Ext Cet Fac Upp Upp Zhi Pro Fac Res DSF Res Acc Slots Evolved 14 | 3 . 1 1 . . 1 1 4 . . . 1 1 . . . . . . 1 . Power . | . . . . . . . . . . . . . . . . . . . . . . Propulsion 2 | 1 . . . . . . . . . . . . . . . . . . . 1 . Utility 7 | 1 . . . . . 1 . 3 . . . 1 1 . . . . . . . . Weapon 5 | 1 . 1 1 . . . 1 1 . . . . . . . . . . . . . Parts Attached 123 | 7 2 3 14 1 1 4 7 14 7 8 3 1 8 4 3 2 4 . 11 18 1 Power 11 | 1 . 1 1 1 . 2 . . 1 . 1 . . . 2 . 1 . . . . Engine 7 | 1 . 1 1 1 . 1 . . . . 1 . . . 1 . . . . . . Core 2 | . . . . . . 1 . . 1 . . . . . . . . . . . . Reactor 2 | . . . . . . . . . . . . . . . 1 . 1 . . . . Propulsion 16 | 2 1 . 4 . . . 1 3 . . . . . . . . . . 2 3 . Treads 3 | 2 . . 1 . . . . . . . . . . . . . . . . . . Leg 13 | . 1 . 3 . . . 1 3 . . . . . . . . . . 2 3 . Wheel . | . . . . . . . . . . . . . . . . . . . . . . Hover . | . . . . . . . . . . . . . . . . . . . . . . Flight . | . . . . . . . . . . . . . . . . . . . . . . Utility 32 | 2 1 1 1 . 1 2 1 5 . 4 . 1 3 1 1 . 3 . 3 1 1 Device 24 | 2 . 1 1 . . 2 1 2 . 3 . 1 1 1 1 . 3 . 3 1 1 Storage 1 | . . . . . 1 . . . . . . . . . . . . . . . . Processor 3 | . 1 . . . . . . 1 . . . . 1 . . . . . . . . Hackware 1 | . . . . . . . . . . 1 . . . . . . . . . . . Protection 3 | . . . . . . . . 2 . . . . 1 . . . . . . . . Artifact . | . . . . . . . . . . . . . . . . . . . . . . Weapon 64 | 2 . 1 8 . . . 5 6 6 4 2 . 5 3 . 2 . . 6 14 . Energy Gun 36 | 1 . . 8 . . . 3 2 6 2 1 . 2 2 . 1 . . . 8 . Energy Cannon 16 | . . . . . . . 2 2 . . . . 2 . . . . . 6 4 . Ballistic Gun 2 | 1 . 1 . . . . . . . . . . . . . . . . . . . Ballistic Cannon . | . . . . . . . . . . . . . . . . . . . . . . Launcher . | . . . . . . . . . . . . . . . . . . . . . . Special Weapon 1 | . . . . . . . . . . . . . . 1 . . . . . . . Impact Weapon 1 | . . . . . . . . 1 . . . . . . . . . . . . . Slashing Weapon 7 | . . . . . . . . . . 2 1 . 1 . . 1 . . . 2 . Piercing Weapon 1 | . . . . . . . . 1 . . . . . . . . . . . . . Special Melee Weapon . | . . . . . . . . . . . . . . . . . . . . . . Unidentified Prototypes 6 | . . . 2 . . . . . . . . . 1 1 2 . . . . . . Parts Lost 2 | . . . . . . . . . . . . . . . . . . . . . 2 Power . | . . . . . . . . . . . . . . . . . . . . . . Propulsion . | . . . . . . . . . . . . . . . . . . . . . . Utility 2 | . . . . . . . . . . . . . . . . . . . . . 2 Weapon . | . . . . . . . . . . . . . . . . . . . . . . Highest Loss Streak 2 | . . . . . . . . . . . . . . . . . . . . . 2 To Critical Strikes . | . . . . . . . . . . . . . . . . . . . . . . Average Slot Usage (%) 98 | . 99 100 95 100 100 92 98 96 100 99 100 100 99 99 99 100 100 100 98 99 99 Engine 3 | . 14 12 10 11 11 7 . . . . 5 6 5 5 4 5 4 . . . . Core 2 | . . . . . . 2 9 7 6 6 . . . . . . . . . . . Treads 1 | . 22 12 9 . . . . . . . . . . . . . . . . . . Leg 14 | . 5 12 12 22 22 20 18 14 13 13 13 12 11 11 11 11 11 11 11 15 16 Device 26 | . 14 14 22 22 16 12 18 20 26 25 26 31 32 34 34 35 35 35 34 33 32 Storage 5 | . . . . . 5 10 9 7 6 6 6 6 5 5 5 5 5 5 5 5 5 Protection 3 | . . . . . . . . 3 6 6 6 6 5 5 5 5 5 5 5 5 4 Energy Gun 31 | . 14 12 28 44 44 40 40 30 39 39 38 37 35 34 35 34 35 35 15 6 16 Energy Cannon 4 | . . . . . . . 3 6 . . . . . . . . . . 18 25 16 Ballistic Gun 1 | . 14 24 11 . . . . . . . . . . . . . . . . . . Naked Turns . | . . . . . . . . . . . . . . . . . . . . . . Heaviest Build 113 | 8 8 11 19 17 20 23 27 39 46 48 48 47 49 51 51 51 60 60 112 113 92 Greatest Support 101 | 40 40 10 40 20 20 20 35 50 50 55 55 55 55 55 55 55 60 60 70 101 101 Greatest Overweight (x) 6 | . . 1 6 . . 1 1 . . . . . . . . . . . 1 1 . Average Overweight (x) . | . . . . . . . . . . . . . . . . . . . . . . Largest Inventory Capacity 4 | . . . 1 1 1 2 2 2 3 3 3 3 3 3 3 3 3 3 3 4 4 Average Capacity 2 | . . . . 1 1 1 2 2 2 3 3 3 3 3 3 3 3 3 3 3 4 Most Carried 4 | . . . 1 1 1 2 2 2 3 3 3 3 3 3 3 3 3 3 3 4 4 Average Carried 2 | . . . . 1 1 1 1 1 2 2 3 2 2 3 2 3 3 3 2 3 4 Final Capacity 4 | . . . 1 1 1 2 2 2 3 3 3 3 3 3 3 3 3 3 3 4 4 Final Carried 4 | . . . 1 1 1 2 2 1 3 3 3 3 3 3 3 3 3 3 3 4 4 Class Distribution -------------------- 35% | Pyromaniac-Executioner 31% | Scavenger-Skirmisher 15% | Scavenger-Executioner 9% | Commander-Executioner Dominant Class ---------------- Mutant | -10/Materials Gunner | -10/Mines Scavenger-Skirmisher | -9/Materials Scavenger-Skirmisher | -9/Mines Scavenger-Skirmisher | -9/Exiles Scavenger-Skirmisher | -8/Mines Scavenger-Skirmisher | -8/Materials Scavenger-Skirmisher | -7/Factory Pyromaniac-Executioner | -6/Factory Pyromaniac-Executioner | -6/Extension Commander-Executioner | -6/Cetus Pyromaniac-Executioner | -5/Factory Pyromaniac-Executioner | -5/Upper Caves Pyromaniac-Executioner | -5/Upper Caves Pyromaniac-Executioner | -5/Zhirov Pyromaniac-Executioner | -4/Proximity Caves Pyromaniac-Executioner | -4/Factory Pyromaniac-Executioner | -3/Research Scavenger-Executioner | -3/DSF Scavenger-Executioner | -2/Research Scavenger-Executioner | -1/Access Resources | -11 -10 -10 -9 -9 -9 -8 -8 -7 -6 -6 -6 -5 -5 -5 -5 -4 -4 -3 -3 -2 -1 ----------- Run | Scr Mat Min Mat Min Exi Min Mat Fac Fac Ext Cet Fac Upp Upp Zhi Pro Fac Res DSF Res Acc Matter Collected 1701 | 281 44 59 122 38 . 47 64 136 80 191 101 10 80 40 . 60 40 . 110 178 20 Remotely 67 | 67 . . . . . . . . . . . . . . . . . . . . . Salvage Created 15326 | 165 499 128 566 155 . 1004 1359 1268 441 1828 599 31 447 278 82 870 851 . 309 2344 2102 Parts 597 | 16 24 18 33 5 . 48 56 42 12 53 16 1 4 11 6 23 17 . 16 93 103 Haulers Intercepted 5 | . 2 . 1 . . . 2 . . . . . . . . . . . . . . Recyclers Shooed 2 | . . . . . . . . . 1 . . . . . . . 1 . . . . Parts Field Recycled . | . . . . . . . . . . . . . . . . . . . . . . Retrieved Matter . | . . . . . . . . . . . . . . . . . . . . . . Parts Self-Destructed 51 | . . . . . . . . . . . . . 10 12 2 27 . . . . . Prevented . | . . . . . . . . . . . . . . . . . . . . . . Kills | -11 -10 -10 -9 -9 -9 -8 -8 -7 -6 -6 -6 -5 -5 -5 -5 -4 -4 -3 -3 -2 -1 ------- Run | Scr Mat Min Mat Min Exi Min Mat Fac Fac Ext Cet Fac Upp Upp Zhi Pro Fac Res DSF Res Acc Combat Hostiles Destroyed 194 | . 4 4 11 2 . 7 21 21 4 32 9 . 7 5 . 13 6 . 4 19 25 Guns 106 | . 4 4 11 2 . 5 20 9 3 17 8 . 3 2 . 10 4 . 1 . 3 Cannons 47 | . . . . . . . . 9 . . . . . . . . . . 1 19 18 AOE 2 | . . . . . . 2 . . . . . . . . . . . . . . . Classes Destroyed 22 | 2 5 . 3 . . . 4 3 1 2 1 . . . . 1 . . . . . Worker 15 | . . . 1 1 . 7 2 . . . . . . . . . . . . 2 2 Builder 23 | . 2 2 2 1 . 5 2 1 . 4 . . . . . . . . . 3 1 Tunneler 12 | 4 1 1 . . . 5 1 . . . . . . . . . . . . . . Hauler 5 | . 2 . 1 . . . 2 . . . . . . . . . . . . . . Recycler 22 | 1 3 . . 1 . 6 2 1 1 1 . . . . . . 5 . . . 1 Carrier 2 | . . . . . . . . . . . 1 . . . . . . . . 1 . Mechanic 1 | . . . 1 . . . . . . . . . . . . . . . . . . Operator 3 | . . . . . . . 1 . . . . . . . . . . . . 1 1 Watcher 14 | . 1 . 1 . . . 1 3 1 2 . 1 . . . . 1 . . 1 2 Swarmer 33 | . 3 3 4 2 . 3 . 3 . 3 . . 1 . . 6 . . . . 5 Cutter 2 | . . . . . . . 2 . . . . . . . . . . . . . . Grunt 67 | . 1 1 3 . . 4 14 10 3 9 6 . 1 2 . . 2 . . . 11 Brawler 10 | . . . . . . . 1 . 1 1 . . 1 . . 5 . . . . 1 Duelist 8 | . . . . . . . . . 1 6 . . . . . 1 . . . . . Protector 1 | . . . . . . . . . . 1 . . . . . . . . . . . Sentry 27 | . . . 4 . . . 3 3 . 9 . . 2 1 . 1 1 . . 3 . Specialist 11 | . . . . . . . . 2 . . . . . . . . 2 . 1 6 . Hunter 7 | . . . . . . . . 1 . . . . 1 1 . . . . 2 1 1 Programmer 16 | . . . . . . . . 1 . 1 . . . . . . . . . 7 7 Heavy 6 | . . . . . . . 1 1 . . . . . . . . 1 . 1 2 . Behemoth 4 | . . . . . . . . . . 2 . . 1 1 . . . . . . . Cetus Guard 3 | . . . . . . . . . . . 3 . . . . . . . . . . Samaritan 1 | . . . . . . . . . . . . . . . . 1 . . . . . Guerrilla 1 | . . . . . . . . . . . 1 . . . . . . . . . . Best Kill Streak 23 | 4 13 3 7 2 . 23 6 7 5 5 6 1 4 3 1 9 8 . 3 4 18 Combat Bots Only 14 | . 3 3 5 2 . 4 6 7 4 5 6 . 4 3 . 9 2 . 3 4 14 Max Kills in Single Turn 3 | 1 1 1 2 1 . 2 2 1 1 2 2 1 1 1 1 3 2 . 1 2 3 Gunslinging 2 | . . . . . . . 1 . . 1 1 . . . . 2 . . . . . Exploded 2 | . . . . . . 2 . . . . . . . . . . . . . . . Melee . | . . . . . . . . . . . . . . . . . . . . . . Uniques/NPCs Destroyed 1 | . . . . . . . . . . . . . . . 1 . . . . . . Zhirov (-5/Zhirov) Combat | -11 -10 -10 -9 -9 -9 -8 -8 -7 -6 -6 -6 -5 -5 -5 -5 -4 -4 -3 -3 -2 -1 -------- Run | Scr Mat Min Mat Min Exi Min Mat Fac Fac Ext Cet Fac Upp Upp Zhi Pro Fac Res DSF Res Acc Damage Taken 8086 | 40 74 22 360 32 . 121 687 840 61 490 195 . 79 335 742 212 154 . 256 1268 2118 Core 6059 | 32 58 16 293 26 . 98 574 638 40 331 134 . 68 256 542 146 125 . 199 897 1586 Absorbed by Shields 55 | . . . . . . . . . . . 55 . . . . . . . . . . Redirected to Core 5213 | 32 52 16 223 19 . 79 400 604 40 299 125 . 40 213 406 146 52 . 174 879 1414 Core Remaining (%) 91 | 94 . 100 . . . 100 87 69 . . 100 . . . . 100 100 . 100 61 . Volleys Fired 395 | 11 24 17 22 8 . 38 46 44 10 39 10 1 9 6 5 14 12 . 6 36 37 Largest 6 | 2 2 3 4 4 . 4 5 5 6 6 6 6 6 6 6 6 6 . 6 6 6 Hottest 720 | 60 60 80 224 224 . 224 292 301 450 450 450 450 450 450 450 450 450 . 720 720 585 Shots Fired 1864 | 22 48 46 86 32 . 150 212 214 60 236 60 6 54 36 30 84 72 . 36 207 173 Gun 1505 | 22 48 46 86 32 . 150 202 170 60 236 60 6 54 36 30 84 72 . 6 43 62 Cannon 359 | . . . . . . . 10 44 . . . . . . . . . . 30 164 111 Launcher . | . . . . . . . . . . . . . . . . . . . . . . Special . | . . . . . . . . . . . . . . . . . . . . . . Kinetic 74 | 11 24 29 10 . . . . . . . . . . . . . . . . . . Thermal 1628 | . . . 71 32 . 150 212 214 60 236 60 6 54 36 30 84 72 . 36 164 111 Explosive . | . . . . . . . . . . . . . . . . . . . . . . Electromagnetic 162 | 11 24 17 5 . . . . . . . . . . . . . . . . 43 62 Robot Hit Streak 42 | 6 8 5 12 10 . 14 25 22 32 22 24 3 33 20 15 11 20 . 7 42 28 Robot Miss Streak 4 | 2 3 3 2 2 . 4 2 2 1 2 2 1 1 1 1 1 3 . 2 2 1 Penetration Max . | . . . . . . . . . . . . . . . . . . . . . . Secondary Targets 25 | . 1 . 1 . . 1 4 . . 9 3 . 1 . . 4 1 . . . . Max Gunslinging Chain 2 | . 1 . 1 . . 1 1 . . 1 1 . 1 . . 2 1 . . . . Shots Hit Robots 1206 | 15 30 12 56 19 . 73 152 146 47 182 45 3 39 24 21 51 43 . 14 130 104 Core Hits 484 | 7 17 8 25 6 . 38 66 55 16 63 19 1 11 7 6 22 20 . 6 43 48 Critical Kills 5 | . . . . . . . . . . . . . . . . . . . 2 . 3 Critical Parts Destroyed . | . . . . . . . . . . . . . . . . . . . . . . Critical Strikes 91 | 1 . 1 4 2 . 9 10 12 3 10 5 . 10 1 1 6 9 . 2 2 3 Burn 82 | . . . 4 2 . 9 10 12 3 10 5 . 10 1 1 6 9 . . . . Meltdown 5 | . . . . . . . . . . . . . . . . . . . 2 . 3 Corrupt 4 | 1 . 1 . . . . . . . . . . . . . . . . . 2 . Melee Attacks 45 | . . . . . . . . 4 . . 34 . 1 . . 1 . . . 5 . Impact 2 | . . . . . . . . 2 . . . . . . . . . . . . . Slashing 41 | . . . . . . . . . . . 34 . 1 . . 1 . . . 5 . Piercing 2 | . . . . . . . . 2 . . . . . . . . . . . . . Sneak Attacks . | . . . . . . . . . . . . . . . . . . . . . . Combat Hostiles . | . . . . . . . . . . . . . . . . . . . . . . Follow-up Attacks . | . . . . . . . . . . . . . . . . . . . . . . Damage Inflicted 32168 | 206 405 132 796 285 . 1210 2287 2443 1036 4340 1317 85 1133 736 621 1530 1450 . 657 6429 5070 Guns 21703 | 165 362 132 769 285 . 1124 2206 1923 1036 4340 1317 85 1133 736 621 1530 1450 . 167 1084 1238 Cannons 10196 | . . . . . . . 81 483 . . . . . . . . . . 490 5325 3817 Explosions 228 | 41 43 . 27 . . 80 . 37 . . . . . . . . . . . . . Melee . | . . . . . . . . . . . . . . . . . . . . . . Ramming 41 | . . . . . . 6 . . . . . . . . . . . . . 20 15 Kinetic 240 | 28 116 44 52 . . . . . . . . . . . . . . . . . . Thermal 29011 | 41 43 . 698 285 . 1204 2287 2406 1036 4340 1317 85 1133 736 621 1530 1450 . 657 5325 3817 Explosive 37 | . . . . . . . . 37 . . . . . . . . . . . . . Electromagnetic 2839 | 137 246 88 46 . . . . . . . . . . . . . . . . 1084 1238 Impact . | . . . . . . . . . . . . . . . . . . . . . . Slashing . | . . . . . . . . . . . . . . . . . . . . . . Piercing . | . . . . . . . . . . . . . . . . . . . . . . Highest Corruption 7 | . . . . . . . . 2 4 4 4 . . . . . . . . 7 3 Average Corruption 3 | . . . . . . . . 1 3 4 4 . . . . . . . . 2 2 Corruption Purged . | . . . . . . . . . . . . . . . . . . . . . . Corruption Blocked . | . . . . . . . . . . . . . . . . . . . . . . Effects 63 | . . . . . . . . 2 . 37 17 . . . . . . . . 6 1 Message Errors 8 | . . . . . . . . . . 4 2 . . . . . . . . 2 . Matter Fused 25 | . . . . . . . . . . 15 8 . . . . . . . . 2 . Heat Flow Errors 10 | . . . . . . . . 1 . 6 2 . . . . . . . . 1 . Energy Discharges 3 | . . . . . . . . . . 2 1 . . . . . . . . . . Data Loss (minor) 8 | . . . . . . . . 1 . 5 1 . . . . . . . . 1 . Data Loss (major) 2 | . . . . . . . . . . 1 1 . . . . . . . . . . Misfires 4 | . . . . . . . . . . 2 1 . . . . . . . . . 1 Alerts 2 | . . . . . . . . . . 2 . . . . . . . . . . . Weapon Failures 1 | . . . . . . . . . . . 1 . . . . . . . . . . Overload Shots . | . . . . . . . . . . . . . . . . . . . . . . Overflow Damage 255 | . . . 7 . . . . . . . . . . . . . . . 9 93 146 Projectiles 248 | . . . . . . . . . . . . . . . . . . . 9 93 146 Explosions 7 | . . . 7 . . . . . . . . . . . . . . . . . . Melee . | . . . . . . . . . . . . . . . . . . . . . . Knockbacks . | . . . . . . . . . . . . . . . . . . . . . . Impact . | . . . . . . . . . . . . . . . . . . . . . . Kinetic . | . . . . . . . . . . . . . . . . . . . . . . Secondary . | . . . . . . . . . . . . . . . . . . . . . . Self-Inflicted Damage 204 | 40 36 . 11 . . 30 . . . . . . . . . . . . . . 87 Shots 5 | 1 1 . 1 . . 1 . . . . . . . . . . . . . . 1 Rammed . | . . . . . . . . . . . . . . . . . . . . . . Targets Rammed 3 | . . . . . . 1 . . . . . . . . . . . . . 1 1 Kicked 3 | . . . . . . 1 . . . . . . . . . . . . . 1 1 Crushed . | . . . . . . . . . . . . . . . . . . . . . . Highest Temperature 422 | 52 41 40 256 . . . 72 48 422 305 . . . . . . . . 156 381 . Average Temperature 65 | 30 18 11 95 . . . 24 25 129 98 . . . . . . . . 79 178 . Received Heat Transfer 1156 | . 12 . 102 . . 9 198 216 9 177 61 . 9 84 36 51 21 . . 45 126 Siege Activations . | . . . . . . . . . . . . . . . . . . . . . . Robots Corrupted . | . . . . . . . . . . . . . . . . . . . . . . Combat Hostiles . | . . . . . . . . . . . . . . . . . . . . . . Parts Fried 22 | . . . . . . . . . . . . . . . . . . . . 15 7 Impact Corruptions 1 | . . . . . . . . . . . . . . . . . . . . . 1 Robots Melted 41 | . . . . . . . 1 3 1 15 1 . 4 3 . 4 3 . 2 . 4 Combat Hostiles 39 | . . . . . . . 1 3 1 15 1 . 4 3 . 3 2 . 2 . 4 Parts Melted 216 | . . . 5 . . 11 21 19 13 51 17 1 19 9 . 10 17 . 3 16 4 Heat Transferred 52742 | 50 . . 2048 851 . 3541 6327 6364 2650 10250 2825 150 3000 1300 315 3200 3350 . 583 3478 2460 Parts Sabotaged . | . . . . . . . . . . . . . . . . . . . . . . Parts Stolen . | . . . . . . . . . . . . . . . . . . . . . . Parts Stripped . | . . . . . . . . . . . . . . . . . . . . . . Power Chain Reactions 3 | 1 1 . 1 . . . . . . . . . . . . . . . . . . Missiles Intercepted . | . . . . . . . . . . . . . . . . . . . . . . Alert | -11 -10 -10 -9 -9 -9 -8 -8 -7 -6 -6 -6 -5 -5 -5 -5 -4 -4 -3 -3 -2 -1 ------- Run | Scr Mat Min Mat Min Exi Min Mat Fac Fac Ext Cet Fac Upp Upp Zhi Pro Fac Res DSF Res Acc Peak Influence 1733 | 25 198 211 451 177 . 230 327 524 402 1579 1733 1236 . . . . 340 178 262 488 1083 Initial 1100 | . 16 76 81 112 . . 58 137 256 196 818 1100 . . . . 107 178 137 147 292 Average 474 | 8 93 182 190 157 . 76 158 240 360 943 1400 1178 . . . . 227 178 190 222 606 Maximum Alert Level 5 | . . 1 2 . . 1 1 2 2 4 5 4 . . . . 1 . 1 2 3 Low Security (%) 41 | 100 100 75 62 100 . 97 69 51 . 1 . . . . . . 40 100 67 47 . Level 1 24 | . . 24 34 . . 2 30 19 80 14 . . . . . . 59 . 32 45 22 Level 2 11 | . . . 3 . . . . 28 20 26 . . . . . . . . . 6 46 Level 3 4 | . . . . . . . . . . 11 15 1 . . . . . . . . 31 Level 4 16 | . . . . . . . . . . 46 60 98 . . . . . . . . . Level 5 1 | . . . . . . . . . . . 14 . . . . . . . . . . High Security . | . . . . . . . . . . . 8 . . . . . . . . . . Max Security . | . . . . . . . . . . . . . . . . . . . . . . Squads Dispatched 62 | . . . 1 . . 2 7 12 8 11 2 2 . . . . 1 . . 12 4 Investigation 20 | . . . . . . . 2 4 1 8 2 2 . . . . . . . 1 . Extermination 5 | . . . . . . . . 1 . . . . . . . . . . . 3 1 Reinforcement 25 | . . . 1 . . 2 5 4 3 . . . . . . . 1 . . 7 2 Assault 6 | . . . . . . . . 1 1 3 . . . . . . . . . . 1 Garrison 6 | . . . . . . . . 2 3 . . . . . . . . . . 1 . Intercept . | . . . . . . . . . . . . . . . . . . . . . . Searches Triggered . | . . . . . . . . . . . . . . . . . . . . . . Construction Impeded 5 | . . . . . . 2 . . 1 . . . . . . . . . . 1 1 Haulers Reinforced 1 | . . . . . . . . . . . . . . . . . . . . . 1 Active Scanning Responses . | . . . . . . . . . . . . . . . . . . . . . . Cargo Convoy Interrupts 1 | . . . . . . . . . . . . . . . . . . . . 1 . Stealth | -11 -10 -10 -9 -9 -9 -8 -8 -7 -6 -6 -6 -5 -5 -5 -5 -4 -4 -3 -3 -2 -1 --------- Run | Scr Mat Min Mat Min Exi Min Mat Fac Fac Ext Cet Fac Upp Upp Zhi Pro Fac Res DSF Res Acc Distress Signals 7 | . 1 . 1 . . . 1 1 . 1 2 . . . . . . . . . . Communications Jammed . | . . . . . . . . . . . . . . . . . . . . . . Distress Signals . | . . . . . . . . . . . . . . . . . . . . . . Times Spotted 274 | . 7 4 13 3 . 8 27 27 5 55 18 1 11 5 3 16 7 . 4 23 37 Peak Tracking Total 15 | . 4 2 5 3 . 3 4 6 4 12 5 1 7 3 3 9 3 . 3 4 15 Tactical Retreats 8 | . . . 1 . . 1 2 2 . 1 . . . . . 1 . . . . . Traps | -11 -10 -10 -9 -9 -9 -8 -8 -7 -6 -6 -6 -5 -5 -5 -5 -4 -4 -3 -3 -2 -1 ------- Run | Scr Mat Min Mat Min Exi Min Mat Fac Fac Ext Cet Fac Upp Upp Zhi Pro Fac Res DSF Res Acc Traps Triggered 4 | . . . . . . . 1 . 2 1 . . . . . . . . . . . Indirectly . | . . . . . . . . . . . . . . . . . . . . . . Trap Hack Attempts . | . . . . . . . . . . . . . . . . . . . . . . Triggered . | . . . . . . . . . . . . . . . . . . . . . . Disarmed . | . . . . . . . . . . . . . . . . . . . . . . Reprogrammed 1 | . . . . . . . . 1 . . . . . . . . . . . . . Reused 1 | . . . . . . . . 1 . . . . . . . . . . . . . Traps Extracted . | . . . . . . . . . . . . . . . . . . . . . . Installed . | . . . . . . . . . . . . . . . . . . . . . . Triggered 3 | . . . . . . . . 1 . . . . . . . . . . . 2 . Machines | -11 -10 -10 -9 -9 -9 -8 -8 -7 -6 -6 -6 -5 -5 -5 -5 -4 -4 -3 -3 -2 -1 ---------- Run | Scr Mat Min Mat Min Exi Min Mat Fac Fac Ext Cet Fac Upp Upp Zhi Pro Fac Res DSF Res Acc Machines Disabled 18 | . . 2 1 . . 2 1 3 . 1 1 . 1 1 . . . . 1 2 2 Max in Single Turn 2 | . . 1 1 . . 2 1 2 . 1 1 . . 1 . . . . 1 1 1 Garrison Access 1 | . . . . . . . . 1 . . . . . . . . . . . . . Energy Cycler 1 | . . . . . . . . . . . . . . . . . . . . . 1 Machines Sabotaged . | . . . . . . . . . . . . . . . . . . . . . . Garrisons Compromised 1 | . . . . . . . . . . . . . . . . . . . . 1 . Overloaded Fab Kills . | . . . . . . . . . . . . . . . . . . . . . . Hacking | -11 -10 -10 -9 -9 -9 -8 -8 -7 -6 -6 -6 -5 -5 -5 -5 -4 -4 -3 -3 -2 -1 --------- Run | Scr Mat Min Mat Min Exi Min Mat Fac Fac Ext Cet Fac Upp Upp Zhi Pro Fac Res DSF Res Acc Machines Accessed 48 | . 1 . 1 . 1 . 2 6 2 14 4 2 . 1 6 . . 1 . 6 1 Terminals 37 | . 1 . 1 . . . 2 5 1 14 4 1 . . . . . 1 . 6 1 Fabricators 1 | . . . . . . . . . . . . 1 . . . . . . . . . Repair Stations . | . . . . . . . . . . . . . . . . . . . . . . Recycling Units 1 | . . . . . . . . 1 . . . . . . . . . . . . . Scanalyzers . | . . . . . . . . . . . . . . . . . . . . . . Garrison Access 1 | . . . . . . . . . 1 . . . . . . . . . . . . Total Hacks 119 | . 2 . 3 . 1 . 13 17 2 36 8 4 . 1 19 . . 2 . 10 1 Successful 72 | . 1 . . . 1 . 10 9 1 20 3 1 . 1 19 . . 1 . 4 1 Failed 47 | . 1 . 3 . . . 3 8 1 16 5 3 . . . . . 1 . 6 . Catastrophic 12 | . . . . . . . . 3 1 3 3 . . . . . . . . 2 . Database Lockouts . | . . . . . . . . . . . . . . . . . . . . . . Manual 24 | . . . . . 1 . . 2 3 10 1 . . 1 . . . . . 6 . Terminals 94 | . 2 . 3 . . . 13 15 1 36 8 3 . . . . . 2 . 10 1 Fabricators 1 | . . . . . . . . . . . . 1 . . . . . . . . . Repair Stations . | . . . . . . . . . . . . . . . . . . . . . . Recycling Units 2 | . . . . . . . . 2 . . . . . . . . . . . . . Scanalyzers . | . . . . . . . . . . . . . . . . . . . . . . Garrison Access 1 | . . . . . . . . . 1 . . . . . . . . . . . . Terminal Hacks 67 | . 1 . . . 1 . 10 7 . 18 3 1 . 1 19 . . 1 . 4 1 Record 14 | . . . . . . . . . . 2 2 . . . 7 . . . . 2 1 Part Schematic 5 | . . . . . . . . . . 1 . . . . 4 . . . . . . Robot Analysis 7 | . 1 . . . . . . . . 2 . . . . 4 . . . . . . Prototype ID Bank 7 | . . . . . . . . 2 . 1 . . . . 4 . . . . . . Open Door 9 | . . . . . . . . . . 7 1 . . 1 . . . . . . . Open DSF 2 | . . . . . . . . . . . . . . . . . . 1 . 1 . Branch Access Points 3 | . . . . . . . . 1 . . . 1 . . . . . . . 1 . Alert Level 8 | . . . . . . . 8 . . . . . . . . . . . . . . Unreport Threat 3 | . . . . . . . 1 1 . 1 . . . . . . . . . . . Locate Traps 1 | . . . . . . . . 1 . . . . . . . . . . . . . Reprogram Traps 1 | . . . . . . . . 1 . . . . . . . . . . . . . Patrol Status 1 | . . . . . . . . . . 1 . . . . . . . . . . . Recall Investigation 3 | . . . . . . . . 1 . 2 . . . . . . . . . . . Zone Layout 2 | . . . . . . . 1 . . 1 . . . . . . . . . . . EX-Prototype ID Bank 1 | . . . . . 1 . . . . . . . . . . . . . . . . Fabricator Hacks . | . . . . . . . . . . . . . . . . . . . . . . Repair Station Hacks . | . . . . . . . . . . . . . . . . . . . . . . Recycling Unit Hacks 2 | . . . . . . . . 2 . . . . . . . . . . . . . Report Inventory 1 | . . . . . . . . 1 . . . . . . . . . . . . . Retrieve Components 1 | . . . . . . . . 1 . . . . . . . . . . . . . Scanalyzer . | . . . . . . . . . . . . . . . . . . . . . . Garrison Access Hacks . | . . . . . . . . . . . . . . . . . . . . . . Unauthorized Hacks 3 | . . . . . . . . . 1 2 . . . . . . . . . . . Terminals 2 | . . . . . . . . . . 2 . . . . . . . . . . . Botnet 2 | . . . . . . . . . . 2 . . . . . . . . . . . Fabricators . | . . . . . . . . . . . . . . . . . . . . . . Repair Stations . | . . . . . . . . . . . . . . . . . . . . . . Recycling Units . | . . . . . . . . . . . . . . . . . . . . . . Scanalyzers . | . . . . . . . . . . . . . . . . . . . . . . Garrison Access 1 | . . . . . . . . . 1 . . . . . . . . . . . . Reprogram 1 | . . . . . . . . . 1 . . . . . . . . . . . . Data Cores Recovered 2 | . . . . . . . . . . . . . . . . . . . . 1 1 Used 1 | . . . . . . . . . . . . . . . . . . . . . 1 Hacking Detections 24 | . . . 1 . . . 2 5 . 8 2 2 . . . . . . . 3 1 Full Trace Events 15 | . . . 1 . . . 1 4 . 5 2 1 . . . . . . . 1 . Feedback Events . | . . . . . . . . . . . . . . . . . . . . . . Feedback Blocked . | . . . . . . . . . . . . . . . . . . . . . . Robot Schematics Acquired . | . . . . . . . . . . . . . . . . . . . . . . Robots Built . | . . . . . . . . . . . . . . . . . . . . . . Authchips . | . . . . . . . . . . . . . . . . . . . . . . Time . | . . . . . . . . . . . . . . . . . . . . . . Total Robot Build Rating . | . . . . . . . . . . . . . . . . . . . . . . Part Schematics Acquired 5 | . . . . . . . . . . 1 . . . . 4 . . . . . . Parts Built . | . . . . . . . . . . . . . . . . . . . . . . Authchips . | . . . . . . . . . . . . . . . . . . . . . . Time . | . . . . . . . . . . . . . . . . . . . . . . Total Part Build Rating . | . . . . . . . . . . . . . . . . . . . . . . Parts Repaired . | . . . . . . . . . . . . . . . . . . . . . . Time . | . . . . . . . . . . . . . . . . . . . . . . Parts Recycled . | . . . . . . . . . . . . . . . . . . . . . . Recycled Matter . | . . . . . . . . . . . . . . . . . . . . . . Retrieved Matter . | . . . . . . . . . . . . . . . . . . . . . . Retrieved Components 3 | . . . . . . . . 3 . . . . . . . . . . . . . Parts Scanalyzed . | . . . . . . . . . . . . . . . . . . . . . . Part Schematics Acquired . | . . . . . . . . . . . . . . . . . . . . . . Parts Damaged . | . . . . . . . . . . . . . . . . . . . . . . Bothacking | -11 -10 -10 -9 -9 -9 -8 -8 -7 -6 -6 -6 -5 -5 -5 -5 -4 -4 -3 -3 -2 -1 ------------ Run | Scr Mat Min Mat Min Exi Min Mat Fac Fac Ext Cet Fac Upp Upp Zhi Pro Fac Res DSF Res Acc Used RIF Installer . | . . . . . . . . . . . . . . . . . . . . . . Robots Hacked . | . . . . . . . . . . . . . . . . . . . . . . Non-combat . | . . . . . . . . . . . . . . . . . . . . . . Combat . | . . . . . . . . . . . . . . . . . . . . . . Robot Hacks Applied . | . . . . . . . . . . . . . . . . . . . . . . Relay Couplers Released . | . . . . . . . . . . . . . . . . . . . . . . Fabnet Peak Effective % . | . . . . . . . . . . . . . . . . . . . . . . Robots Rewired 23 | . . . . . . . . . . 19 . . 2 . . 2 . . . . . Allies Hacked 1 | . . . . . . . . . . 1 . . . . . . . . . . . Hacks Repelled . | . . . . . . . . . . . . . . . . . . . . . . Allies | -11 -10 -10 -9 -9 -9 -8 -8 -7 -6 -6 -6 -5 -5 -5 -5 -4 -4 -3 -3 -2 -1 -------- Run | Scr Mat Min Mat Min Exi Min Mat Fac Fac Ext Cet Fac Upp Upp Zhi Pro Fac Res DSF Res Acc Total Allies 44 | . . . . 1 . . . . 1 33 5 . 2 . . 2 . . . . . Largest Group 18 | . . . . 1 1 . . . 1 15 18 9 5 3 3 2 1 . . . . Highest-Rated Group 996 | . . . . 31 31 . . . 29 550 996 650 328 156 156 96 41 . . . . Highest-Rated Ally 159 | . . . . 31 31 . . . 29 159 159 159 96 96 96 48 41 . . . . Total Orders 2 | . . . . . . . . . . 1 1 . . . . . . . . . . GUARD 2 | . . . . . . . . . . 1 1 . . . . . . . . . . Ally Attacks 428 | . . . . . . . . . . 236 134 14 20 1 3 16 4 . . . . Total Damage 9983 | . . . . . . . . . . 4183 3885 490 473 . 134 651 167 . . . . Kills 70 | . . . . . . . . . . 33 22 5 6 . . 3 1 . . . . Allies Corrupted 1 | . . . . . . . . . . 1 . . . . . . . . . . . Allies Melted . | . . . . . . . . . . . . . . . . . . . . . . Intel | -11 -10 -10 -9 -9 -9 -8 -8 -7 -6 -6 -6 -5 -5 -5 -5 -4 -4 -3 -3 -2 -1 ------- Run | Scr Mat Min Mat Min Exi Min Mat Fac Fac Ext Cet Fac Upp Upp Zhi Pro Fac Res DSF Res Acc Robot Analysis Total 7 | . 1 . . . . . . . . 2 . . . . 4 . . . . . . Derelict Logs Recovered 3 | . . . . 2 . . . . . . . . . . . 1 . . . . . Drone Launches . | . . . . . . . . . . . . . . . . . . . . . . Drone Recoveries . | . . . . . . . . . . . . . . . . . . . . . . Exploration | -11 -10 -10 -9 -9 -9 -8 -8 -7 -6 -6 -6 -5 -5 -5 -5 -4 -4 -3 -3 -2 -1 ------------- Run | Scr Mat Min Mat Min Exi Min Mat Fac Fac Ext Cet Fac Upp Upp Zhi Pro Fac Res DSF Res Acc Turns Passed 11410 | 98 160 341 463 315 254 607 935 948 395 1775 669 273 557 393 557 530 188 2 201 1391 358 Spaces Moved 6263 | 41 60 95 213 236 211 267 282 551 224 975 410 192 383 282 358 349 96 2 100 740 196 Core 9 | 7 . . 2 . . . . . . . . . . . . . . . . . . Treads 94 | 34 34 . 26 . . . . . . . . . . . . . . . . . . Legs 6160 | . 26 95 185 236 211 267 282 551 224 975 410 192 383 282 358 349 96 2 100 740 196 Wheels . | . . . . . . . . . . . . . . . . . . . . . . Hover . | . . . . . . . . . . . . . . . . . . . . . . Flight . | . . . . . . . . . . . . . . . . . . . . . . Fastest Speed 50 | 50 120 120 120 120 120 120 120 120 120 120 120 120 120 120 120 120 120 120 120 113 113 Average Speed 129 | 141 142 139 165 120 120 135 170 123 120 120 120 120 120 120 120 120 120 120 144 148 113 Slowest Speed 350 | 160 160 190 350 120 120 190 190 125 120 120 120 120 120 120 120 120 120 120 190 190 113 Overloaded Moves . | . . . . . . . . . . . . . . . . . . . . . . Propulsion Burnouts . | . . . . . . . . . . . . . . . . . . . . . . Robots Hopped . | . . . . . . . . . . . . . . . . . . . . . . Cave-ins Triggered . | . . . . . . . . . . . . . . . . . . . . . . Exploration Rate (%) 39 | 3 22 23 25 42 60 46 21 14 6 89 92 9 64 47 97 55 3 . 88 17 7 Regions Visited 21 Branch Regions 10 Pre-discovered Areas 5 | . . . . 1 . . . . . . . . . . 3 1 . . . . . Known Exits Taken 3 | . . . . . . 1 . . . . . 1 . . . . . 1 . . . Unknown Exits Taken 17 | 1 1 1 1 1 1 . 1 1 1 1 1 . 1 1 1 1 1 . . 1 . Scrap Searched 7 | . . 1 . 1 . 1 . . . . . . 1 2 . 1 . . . . . Spaces Dug 17 | . . . . . . . . 1 . . . . 1 5 . 1 . . 4 5 . Terrain Destroyed 190 | 6 2 . . . . 24 . 5 . . 2 2 6 8 . 24 7 . 14 48 42 Melee 8 | . . . . . . . . 1 . . . . 1 . . 1 . . . 5 . Projectile 128 | . . . . . . . . . . . 2 2 5 8 . 23 7 . 14 43 24 AOE 54 | 6 2 . . . . 24 . 4 . . . . . . . . . . . . 18 Terrain Rammed . | . . . . . . . . . . . . . . . . . . . . . . Walls Destroyed . | . . . . . . . . . . . . . . . . . . . . . . Machines Disabled . | . . . . . . . . . . . . . . . . . . . . . . Actions | -11 -10 -10 -9 -9 -9 -8 -8 -7 -6 -6 -6 -5 -5 -5 -5 -4 -4 -3 -3 -2 -1 --------- Run | Scr Mat Min Mat Min Exi Min Mat Fac Fac Ext Cet Fac Upp Upp Zhi Pro Fac Res DSF Res Acc Total 8600 | 58 91 272 270 249 212 416 614 695 329 1486 511 232 457 322 473 424 140 1 146 941 261 Wait 1112 | . 1 151 . 1 . 93 248 46 67 132 42 38 31 9 101 9 16 . . 122 5 Move 6242 | 40 59 94 212 235 210 266 281 550 223 974 409 191 382 281 357 348 95 1 99 739 196 Hop . | . . . . . . . . . . . . . . . . . . . . . . Pick Up 15 | . . . . 1 . . 2 1 2 2 . 1 1 . 1 . . . 2 2 . Fast Attach 69 | 7 2 2 10 . 1 3 2 6 1 3 1 . 4 4 4 . 1 . 11 7 . Attach 5 | . . . . . . . 2 1 . . . 1 1 . . . . . . . . Detach 11 | . . 1 1 . . . 1 1 . 2 . . 1 1 . . . . 1 2 . Swap 50 | . . 1 4 1 . 1 3 7 6 5 2 . 3 . . 2 3 . . 11 1 Drop 77 | . 2 1 11 2 1 2 3 6 7 5 1 . 5 3 4 . 2 . 13 8 1 Fire 395 | 11 24 17 22 8 . 38 46 44 10 39 10 1 9 6 5 14 12 . 6 36 37 Melee 45 | . . . . . . . . 4 . . 34 . 1 . . 1 . . . 5 . Ram . | . . . . . . . . . . . . . . . . . . . . . . Kick 3 | . . . . . . 1 . . . . . . . . . . . . . 1 1 Crush . | . . . . . . . . . . . . . . . . . . . . . . Escape Stasis . | . . . . . . . . . . . . . . . . . . . . . . Rewire 300 | . . . . . . . . . . 285 . . 8 . . 7 . . . . . Trap . | . . . . . . . . . . . . . . . . . . . . . . Miscellaneous 276 | . 3 5 10 1 . 12 26 29 13 39 12 . 11 18 1 43 11 . 14 8 20 Route ------- -11/Scrapyard -10/Materials (discovered 2 exits: [*Min x2]) -10/Mines -9/Materials -9/Mines (discovered 2 exits: Mat / *Exi) -9/Exiles (discovered 2 exits: [*Min x2]) -8/Mines (discovered 2 exits: *Mat x2) -8/Materials -7/Factory (discovered 3 exits: *Fac / Low x2) -6/Factory -6/Extension (discovered 3 exits: *Fac x2 / *Cet) -6/Cetus (discovered 3 exits: *Fac x2 / [*Arc]) -5/Factory (discovered 2 exits: *Upp x2) -5/Upper Caves -5/Upper Caves -5/Zhirov -4/Proximity Caves -4/Factory -3/Research -3/DSF -2/Research (discovered 3 exits: *Acc / Tes x2) -1/Access History --------- Turn | Location | Event 1 | -11/Scrapyard | Upgraded with Propulsion slot (x1) 1 | -11/Scrapyard | Upgraded with Utility slot (x1) 1 | -11/Scrapyard | Upgraded with Weapon slot (x1) 14 | -11/Scrapyard | Discovered new exit (range 15) 99 | -11/Scrapyard | Entered Materials 173 | -10/Materials | Discovered new exit (range 10) 248 | -10/Materials | Discovered new exit (range 9) 259 | -10/Materials | Entered Mines 279 | -10/Mines | Reached level 2 282 | -10/Mines | Upgraded with Weapon slot (x1) 338 | -10/Mines | Excavation squad dispatched 338 | -10/Mines | A large section of the Mines collapsed 584 | -10/Mines | Discovered new exit (range 9) 600 | -10/Mines | Entered Materials 602 | -9/Materials | Reached level 3 602 | -9/Materials | Upgraded with Weapon slot (x1) 815 | -9/Materials | Build established: Scavenger-Skirmisher 992 | -9/Materials | Reached level 4 1015 | -9/Materials | Discovered new exit (range 16) 1063 | -9/Materials | Entered Mines 1067 | -9/Mines | Identified exit to Materials 1097 | -9/Mines | Met a Derelict bent on vengeance 1136 | -9/Mines | Escorted by a lone wolf Derelict 1156 | -9/Mines | Learned location of Storage (-8) 1371 | -9/Mines | Deemed a non-threat by the Exiles lab entrance 1371 | -9/Mines | Discovered new exit (range 6) 1378 | -9/Mines | Entered Exiles 1378 | -9/Exiles | Accompanied by 1 ally 1396 | -9/Exiles | Discovered new exit (range 15) 1408 | -9/Exiles | Met 8R-AWN 1428 | -9/Exiles | Met EX-HEX 1460 | -9/Exiles | Met EX-BIN 1476 | -9/Exiles | Aligned with FarCom system 1477 | -9/Exiles | Given EX-Vault access code 1504 | -9/Exiles | Opened EX-Vault 1513 | -9/Exiles | Found Superbattery 1541 | -9/Exiles | Warned to stay clear of 0b10 Research branches 1580 | -9/Exiles | Met EX-DEC 1619 | -9/Exiles | Discovered new exit (range 14) 1632 | -9/Exiles | Left Exiles lab with Superbattery 1632 | -9/Exiles | Entered Mines 1634 | -8/Mines | Reached level 5 1635 | -8/Mines | Upgraded with Utility slot (x1) 1720 | -8/Mines | Discovered exit to Materials (range 16) 1729 | -8/Mines | Discovered exit to Materials (range 9) 2239 | -8/Mines | Entered Materials 2241 | -8/Materials | Reached level 6 2241 | -8/Materials | Upgraded with Weapon slot (x1) 2449 | -8/Materials | Reached level 7 2981 | -8/Materials | Reached level 8 3147 | -8/Materials | Discovered new exit (range 11) 3174 | -8/Materials | Entered Factory 3175 | -7/Factory | Identified exit to Lower Caves 3176 | -7/Factory | Reached level 9 3176 | -7/Factory | Upgraded with Utility slot (x1) 3494 | -7/Factory | Reached level 10 3509 | -7/Factory | Upgraded with Utility slot (x1) 3687 | -7/Factory | Reached level 11 3707 | -7/Factory | Upgraded with Utility slot (x1) 4014 | -7/Factory | Reached level 12 4066 | -7/Factory | Discovered new exit (range 15) 4071 | -7/Factory | Destroyed 7 combat bots 4103 | -7/Factory | Upgraded with Weapon slot (x1) 4122 | -7/Factory | Entered another Factory area 4124 | -6/Factory | Reached level 13 4214 | -6/Factory | Garrison activated, responded to threat 4370 | -6/Factory | Discovered new exit (range 13) 4441 | -6/Factory | Build established: Pyromaniac-Executioner 4472 | -6/Factory | First assault squad dispatched 4517 | -6/Factory | Entered Extension 4519 | -6/Extension | Reached level 14 4631 | -6/Extension | Rescued a captive Derelict 4632 | -6/Extension | Rescued a captive Derelict 4810 | -6/Extension | Reached level 15 4823 | -6/Extension | Rescued a captive Derelict 4864 | -6/Extension | Allied Derelicts emerged from ambush trap array 4877 | -6/Extension | Reached level 16 4888 | -6/Extension | Rescued a captive Derelict 4889 | -6/Extension | Rescued a captive Derelict 5282 | -6/Extension | Reached level 17 5333 | -6/Extension | Spotted B-75 Beast 5336 | -6/Extension | Destroyed B-75 Beast 5345 | -6/Extension | Spotted B-75 Beast 5351 | -6/Extension | Destroyed B-75 Beast 5395 | -6/Extension | Discovered new exit (range 10) 5435 | -6/Extension | Reached level 18 5528 | -6/Extension | Discovered new exit (range 17) 5530 | -6/Extension | Discovered new exit (range 15) 5567 | -6/Extension | First assault squad dispatched 5726 | -6/Extension | Rescued a captive Derelict 5727 | -6/Extension | Rescued a captive Derelict 5778 | -6/Extension | Rescued A7 5871 | -6/Extension | Reached level 19 6061 | -6/Extension | Rescued a captive Derelict 6062 | -6/Extension | Rescued a captive Derelict 6098 | -6/Extension | Rescued a captive Derelict 6195 | -6/Extension | Build established: Commander-Executioner 6292 | -6/Extension | Entered Cetus 6292 | -6/Cetus | Accompanied by 14 allies (A7) 6297 | -6/Cetus | Acquired a Cetus Manufacturing Module code from A7 6309 | -6/Cetus | Spotted Cetus Guard 6310 | -6/Cetus | Spotted Cetus Guard 6311 | -6/Cetus | Spotted Cetus Guard 6312 | -6/Cetus | Spotted Cetus Guard 6316 | -6/Cetus | Allies destroyed Cetus Guard 6321 | -6/Cetus | Allies destroyed Cetus Guard 6322 | -6/Cetus | Destroyed Cetus Guard 6325 | -6/Cetus | Allies destroyed Cetus Guard 6405 | -6/Cetus | Reached level 20 6420 | -6/Cetus | Started Cetus Manufacturing Module 6445 | -6/Cetus | Manufactured an Enhanced Grunt 6470 | -6/Cetus | Manufactured an Enhanced Grunt 6489 | -6/Cetus | Escorted A7 to Cetus Mainframe 6495 | -6/Cetus | Manufactured an Enhanced Grunt 6520 | -6/Cetus | Manufactured an Enhanced Grunt 6545 | -6/Cetus | Manufactured an Enhanced Grunt 6657 | -6/Cetus | Found a strange terminal 6731 | -6/Cetus | Discovered new exit (range 16) 6858 | -6/Cetus | Discovered new exit (range 17) 6882 | -6/Cetus | Spotted Cetus Guard 6882 | -6/Cetus | Spotted Cetus Guard 6883 | -6/Cetus | Spotted Cetus Guard 6885 | -6/Cetus | Spotted Cetus Guard 6888 | -6/Cetus | Destroyed Cetus Guard 6901 | -6/Cetus | High security lockdown imminent 6901 | -6/Cetus | Allies destroyed Cetus Guard 6904 | -6/Cetus | Allies destroyed Cetus Guard 6905 | -6/Cetus | Discovered new exit (range 17) 6909 | -6/Cetus | Destroyed Cetus Guard 6917 | -6/Cetus | Met Revision 17 6961 | -6/Cetus | Entered Factory 6961 | -5/Factory | Accompanied by 9 allies (A7) 6963 | -5/Factory | Reached level 21 6964 | -5/Factory | Upgraded with Utility slot (x1) 6966 | -5/Factory | Received a hacking code to weaken MAIN.C 7022 | -5/Factory | Identified exit to Upper Caves 7234 | -5/Factory | Entered Upper Caves 7234 | -5/Upper Caves | Accompanied by 5 allies 7235 | -5/Upper Caves | Encountered a Warlord checkpoint 7365 | -5/Upper Caves | Build established: Pyromaniac-Executioner 7466 | -5/Upper Caves | Reached level 22 7481 | -5/Upper Caves | Attracted the attention of an 0b10 outpost 7487 | -5/Upper Caves | Upgraded with Utility slot (x1) 7673 | -5/Upper Caves | Spotted B-75 Beast 7677 | -5/Upper Caves | Destroyed B-75 Beast 7703 | -5/Upper Caves | Attracted the attention of an 0b10 checkpoint 7760 | -5/Upper Caves | Discovered new exit (range 16) 7791 | -5/Upper Caves | Entered another Upper Caves area 7791 | -5/Upper Caves | Accompanied by 3 allies 7973 | -5/Upper Caves | Acquired the password to a Derelict Tinkerer's latest research 7997 | -5/Upper Caves | Found Prototype Special Weapon 7997 | -5/Upper Caves | Identified Molecular Deconstructor 8047 | -5/Upper Caves | Discovered new exit (range 12) 8063 | -5/Upper Caves | Attracted the attention of an 0b10 checkpoint 8107 | -5/Upper Caves | Spotted B-75 Beast 8108 | -5/Upper Caves | Destroyed B-75 Beast 8184 | -5/Upper Caves | Entered Zhirov 8184 | -5/Zhirov | Accompanied by 3 allies 8184 | -5/Zhirov | Discovered new exit (range 3) 8207 | -5/Zhirov | Met Zhirov 8232 | -5/Zhirov | Learned location of Quarantine (-3) 8232 | -5/Zhirov | Learned location of Testing (-2) 8232 | -5/Zhirov | Learned location of Command (-1) 8241 | -5/Zhirov | Zhirov requested help retrieving the SGEMP Prototype 8267 | -5/Zhirov | Found Alien Artifact 8267 | -5/Zhirov | Identified Integrated Dissipator 8267 | -5/Zhirov | Installed Integrated Dissipator, increased core heat dissipation (+20) 8284 | -5/Zhirov | Found Alien Artifact 8367 | -5/Zhirov | Attacked by Zhirov 8377 | -5/Zhirov | Destroyed Zhirov 8383 | -5/Zhirov | Zhirov detonated his lab 8383 | -5/Zhirov | Cloak Generator disabled 8384 | -5/Zhirov | Core integrity fell below 50% 8741 | -5/Zhirov | Entered Proximity Caves 8743 | -4/Proximity Caves | Reached level 23 8769 | -4/Proximity Caves | Attracted the attention of an 0b10 outpost 8843 | -4/Proximity Caves | Destroyed 9 combat bots 9080 | -4/Proximity Caves | Attracted the attention of an 0b10 checkpoint 9094 | -4/Proximity Caves | Reached level 24 9253 | -4/Proximity Caves | Discovered new exit (range 9) 9263 | -4/Proximity Caves | Learned location of Armory (-4) 9271 | -4/Proximity Caves | Entered Factory 9271 | -4/Factory | Accompanied by 1 ally 9346 | -4/Factory | Discovered new exit (range 8) 9417 | -4/Factory | Reached level 25 9459 | -4/Factory | Entered Research 9461 | -3/Research | Reached level 26 9461 | -3/Research | Identified exit to DSF 9461 | -3/Research | Entered DSF 9479 | -3/DSF | Reached level 27 9497 | -3/DSF | Additional patrols routed to DSF 9590 | -3/DSF | Discovered new exit (range 16) 9662 | -3/DSF | Entered Research 9664 | -2/Research | Reached level 28 9716 | -2/Research | Build established: Scavenger-Executioner 9913 | -2/Research | Upgraded with Propulsion slot (x1) 10131 | -2/Research | Reached level 29 10132 | -2/Research | Cargo convoy interrupted 10634 | -2/Research | Spotted B-90 Cyclops 10666 | -2/Research | Discovered new exit (range 21) 10723 | -2/Research | Identified exit to Testing 11025 | -2/Research | Garrison activated, responded to threat 11034 | -2/Research | Reached level 30 11053 | -2/Research | Entered Access 11055 | -1/Access | Reached level 31 11177 | -1/Access | Energy Cycler disabled 11251 | -1/Access | Reached level 32 11334 | -1/Access | First assault squad dispatched 11378 | -1/Access | Core integrity fell below 50% 11381 | -1/Access | Destroyed 14 combat bots 11399 | -1/Access | Reached level 33 11404 | -1/Access | Core integrity fell below 20% 11411 | -1/Access | Self-destructed Last Messages --------------- 11399_ Penetrated by Slug. 11399_ K-01 Serf destroyed. 11400_ K-01 Serf collects debris. 11401_ Upgraded: Energy Generation (+5) 11401_ Upgraded: Energy Storage (+100) 11402_ Penetrated by Slug. 11402_ Slug penetrates Wall. 11402_ U-05 Engineer destroyed. 11403_ Penetrated by Slug. 11403_ K-01 Serf suffers critical hit (Destroy). 11403_ K-01 Serf destroyed. 11403_ Penetrated by Slug. 11403_ Particle Charger destroyed. 11403_ Critical hit (Burn: +37). 11406_ Slug penetrates Wall. 11406_ Penetrated by Slug. 11406_ Slug penetrates Wall. 11408_ B-74 Champion suffers critical hit (Meltdown). 11408_ G-73 Enforcer destroyed. 11409_ Slug penetrates Wall. Map ----- +----------------------------------------------------+ | #### ###########?##? ???????????? | | #### ############## ????????????? | | !* #### ############## ? ??????????? | | ! #### ############## ??????????? | | [ #### ############## ??????????? | | % ##########+################### ??????????? | | [ ################ ""????????? | | ^^ ################ " ???????? | | ^ ###############? ? ?????? | | ^ ################ ?????? | | ################ ????? | | ^ ################ ???? | | ^ #####################+##+##???? | | ############ ####### ???? | | ############ % ####### ??? | | ############ ####### # ? | | ############ A ####### + | | ############ ig ####### # | | ############ ####### # | | ############ g ####### # | | ###################[% ####### ###### # | | #### """T""" # !=!% ####### "%"###### # | | #### """ """ # [%[=% ####### ###### ### | | # # + !! %*!####### ######+### | | #### % # !%%!=#### ## # | | #### # =!=[@# ## # | | #### # %=!%s####### # " | | ################### =%[!%%hssw! # """ | | ################### *!=%=[!ss=s= # """ | | ################### %[====%= # " | | ################### =!u[*% h %+% | | ################### = h % # | | ################### [=% # | | ################# # !=h*% =% # | | #################################%=* # | | ######################### #######[= # | | ################################# ########## | | ######## ################## ########## | | ######## ################## ########## | | ######## ################## ########## | | ######## ################## ########## | | ##?##### ################## ########## | | ##?##### ## #### ########## | | ####?### ## #### ########## | | ?? ? # ## #### ########## | | ???? # ## #### ![ ########## | | ?? ?? ?# ##""""" ####%%* ########## | | ????????? ##""""" ####^[=! ^ ########## | | ?????????? ##""""" ####=!!^^ ########## | | ???????? ? ##""""" ####%=!! ########## | +----------------------------------------------------+ Best States ------------- Heat Dissipation 232 Energy Generation 43 Energy Capacity 1890 Matter Stores 300 Matter Capacity 300 Sight Range 18 Robot Scan Range 18 Terrain Scan Range 24 Terrain Scan Density 710 Jamming Range 12 Base Temperature (-) 150 Armor Coverage 225 Resistance: KI 20 Weapon Cycling 20 Evasion (%) 55 Targeting Accuracy 5 Recoil Reduction 2 Particle Charging 22 Salvage Targeting 4 Offensive Hacking 10 Item Schematics ----------------- Imp. Antigrav System | -6/Extension | Hacked Assault Drone Bay | -5/Zhirov | Free Exp. Heat Sink | -5/Zhirov | Free Exp. Optical Array | -5/Zhirov | Free Imp. Arc Thrower | -5/Zhirov | Free Robot Schematics ------------------ None Fabricated ------------ Nothing Alien Tech Used ----------------- Integrated Dissipator Achievements -------------- Main Advantage Project G-00 Pyromaniac Revising The Future Challenges ------------ None RPGLIKE | -11 -10 -10 -9 -9 -9 -8 -8 -7 -6 -6 -6 -5 -5 -5 -5 -4 -4 -3 -3 -2 -1 --------- Run | Scr Mat Min Mat Min Exi Min Mat Fac Fac Ext Cet Fac Upp Upp Zhi Pro Fac Res DSF Res Acc Levels Raised 32 | . . 1 2 . . 1 3 4 1 6 1 1 1 . . 2 1 1 1 3 3 XP Earned 51205 | 3000 555 1100 3048 750 350 1500 4330 5352 2125 8517 2080 1432 954 425 231 2133 1204 2000 1146 4334 4639 XP Spent 50810 | 3000 . 1310 3130 . . 1525 4500 5900 1620 7230 1350 2000 2300 . . 3400 1600 . 3060 2850 6035 Upgrades 108 | 6 . 5 13 . . 7 6 4 4 16 2 1 1 . . 20 1 . 4 7 11 Propulsion Slot 2 | 1 . . . . . . . . . . . . . . . . . . . 1 . Utility Slot 7 | 1 . . . . . 1 . 3 . . . 1 1 . . . . . . . . Weapon Slot 5 | 1 . 1 1 . . . 1 1 . . . . . . . . . . . . . Core Integrity 27 | . . . . . . 5 . . . . . . . . . 20 . . . . 2 Heat Dissipation 28 | . . 3 8 . . . . . 3 7 . . . . . . . . 2 . 5 Energy Generation 4 | . . 1 . . . . . . . . 2 . . . . . . . . . 1 Energy Storage 3 | . . . 1 . . . . . . . . . . . . . . . . . 2 Mass Support 4 | . . . . . . . 2 . . 1 . . . . . . 1 . . . . Inventory Capacity 4 | . . . 1 . . 1 . . 1 . . . . . . . . . . 1 . Sight Range 1 | . . . . . . . . . . 1 . . . . . . . . . . . Terrain Scan Density 7 | . . . 2 . . . . . . . . . . . . . . . . 5 . Ranged Accuracy 9 | 3 . . . . . . 3 . . . . . . . . . . . 2 . 1 KI Resistance % 4 | . . . . . . . . . . 4 . . . . . . . . . . . TH Damage % 3 | . . . . . . . . . . 3 . . . . . . . . . . . Protomatter Created 3170 | . 36 41 65 7 . 96 333 202 92 603 198 . 135 125 84 264 276 . 132 124 357 Integrity Restored 5457 | . 64 88 195 21 . 257 535 596 276 678 197 . 159 343 21 933 163 . 310 186 435 Core 4197 | . 48 58 195 21 . 201 470 482 276 355 134 . 68 256 21 667 125 . 199 186 435 Parts 1260 | . 16 30 . . . 56 65 114 . 323 63 . 91 87 . 266 38 . 111 . . Protomatter Decayed 2758 | . . 61 . . . 7 152 30 . 901 608 245 180 14 . 2 75 . . 393 90 Game ------ Seed MeleeHackingGravjet Manual? 0 Play Time 01:50:55 Cumulative 104.8 hours Start 2022.04.23 @ 17:41:38 End 2022.04.23 @ 19:31:58 Sessions 1 Manual Loads 0 Difficulty Rogue Special Mode Winter2019/RPGLIKE Game No. 128 Rogue 128 Adventurer 0 Explorer 0 Win Type - Total 4 Types 4/0/0/0/0/0/0/0/0 Lore% 56 Gallery% 60 Achievement% 48 Wizard Run 0 Options --------- ASCII 1 Keyboard 1 Movement Numpad Keybinds 0 Fullscreen 1 Font 18/X11 Map View 76x50 Tactical HUD 1 Map Filters NONE Filters NONE Steam 1 RUN: 063100ad-8bc0-436c-a0f2-4c723b9aa779